[Event "19th Prague Open-A 2020"]
[Site "Prague"]
[Date "2020.01.11"]
[Round "3.9"]
[White "Vokac, Marek"]
[Black "Riha, Vojtech"]
[Result "1/2-1/2"]
[ECO "E92"]
[WhiteElo "2334"]
[BlackElo "2247"]
[Annotator "ChessBase"]
[PlyCount "54"]
[EventDate "2020.01.10"]
[EventType "swiss"]
[EventCountry "CZE"]
[SourceTitle "playchess.com"]
[Source "ChessBase"]
[SourceQuality "1"]
[TimeControl "40/5400+30:1800+30"]

1. Nf3 {[%emt 0:00:00]} Nf6 {[%emt 0:00:00]} 2. c4 {[%emt 0:00:00]} g6 {[%emt 0:00:04]} 3. Nc3 {[%emt 0:00:30]} Bg7 {[%emt 0:00:26]} 4. e4 {[%emt 0:02:09]} d6 {[%emt 0:00:16]} 5. d4 O-O {[%emt 0:00:41]} 6. Be2 {[%emt 0:00:09]} e5 {[%emt 0:01:15]} 7. d5 {[%emt 0:00:15]} a5 {[%emt 0:01:58]} 8. Bg5 {[%emt 0:00:17]} h6 {[%emt 0:01:19]} 9. Be3 {[%emt 0:04:00]} Na6 {[%emt 0:00:32]} 10. Nd2 {[%emt 0:00:53]} Nd7 {[%emt 0:06:48]} 11. g4 {[%emt 0:05:34]} f5 {[%emt 0:08:57]} 12. gxf5 {[%emt 0:00:21]} gxf5 {[%emt 0:02:27]} 13. exf5 {[%emt 0:00:03]} Ndc5 {[%emt 0:00:58]} 14. Rg1 {[%emt 0:04:00]} Kh8 {[%emt 0:02:24]} 15. Nde4 {[%emt 0:07:29]} Bxf5 {[%emt 0:04:25]} 16. Ng3 {[%emt 0:03:09]} Bg6 {[%emt 0:05:15]} 17. Nh5 {[%emt 0:00:37]} Bxh5 {[%emt 0:00:51]} 18. Bxh5 {[%emt 0:00:03]} Qh4 {[%emt 0:04:40]} 19. Bg6 {[%emt 0:15:22]} e4 {[%emt 0:05:21]} 20. Nxe4 {[%emt 0:10:38]} Nxe4 {[%emt 0:03:27]} 21. Rg4 {[%emt 0:00:04]} Qf6 {[%emt 0:05:27]} 22. Bxe4 {[%emt 0:00:06]} Rae8 {[%emt 0:01:17]} 23. Qd2 {[%emt 0:12:05]} Rxe4 {[%emt 0:26:13]} 24. Rxe4 {[%emt 0:01:02]} Qf3 {[%emt 0:00:07]} 25. Re7 {[%emt 0:05:33]} Qh1+ {[%emt 0:01:11]} 26. Ke2 {[%emt 0:00:04]} Qf3+ {[%emt 0:00:07]} 27. Ke1 {[%emt 0:00:44]} Qh1+ {[%emt 0:00:17]} 1/2-1/2

[Event "19th Prague Open-A 2020"]
[Site "Prague"]
[Date "2020.01.11"]
[Round "3.10"]
[White "Jordanov Mihail"]
[Black "Liu, Zhaoqi"]
[Result "1/2-1/2"]
[ECO "C03"]
[WhiteElo "2012"]
[BlackElo "2328"]
[Annotator "ChessBase"]
[PlyCount "94"]
[EventDate "2020.01.10"]
[EventType "swiss"]
[EventCountry "CZE"]
[SourceTitle "playchess.com"]
[Source "ChessBase"]
[SourceQuality "1"]
[TimeControl "40/5400+30:1800+30"]

1. e4 {[%emt 0:00:00]} e6 {[%emt 0:00:00]} 2. d4 {[%emt 0:00:00]} d5 {[%emt 0:00:00]} 3. Nd2 {[%emt 0:00:00]} Be7 {[%emt 0:00:03]} 4. Bd3 {[%emt 0:00:10]} c5 {[%emt 0:00:06]} 5. dxc5 {[%emt 0:00:08]} Nf6 {[%emt 0:00:06]} 6. Qe2 {[%emt 0:00:23]} O-O {[%emt 0:00:19]} 7. Ngf3 {[%emt 0:00:35]} a5 {[%emt 0:00:07]} 8. O-O {[%emt 0:01:27]} Na6 {[%emt 0:00:07]} 9. e5 {[%emt 0:01:36]} Nd7 {[%emt 0:00:07]} 10. c3 {[%emt 0:00:52]} Naxc5 {[%emt 0:00:07]} 11. Bc2 {[%emt 0:00:12]} b5 {[%emt 0:00:04]} 12. Nb3 {[%emt 0:01:04]} b4 {[%emt 0:01:03]} 13. cxb4 {[%emt 0:08:22]} axb4 {[%emt 0:00:32]} 14. Re1 {[%emt 0:00:18]} Nxb3 {[%emt 0:04:38]} 15. Qd3 {[%emt 0:02:19]} g6 {[%emt 0:00:39]} 16. Qxb3 {[%emt 0:00:09]} Nc5 {[%emt 0:04:51]} 17. Qe3 {[%emt 0:00:22]} d4 {[%emt 0:16:27]} 18. Nxd4 {[%emt 0:25:45]} Bb7 {[%emt 0:00:36]} 19. Nb3 {[%emt 0:03:33]} Qd5 {[%emt 0:05:59]} 20. Qg3 {[%emt 0:05:22]} Rfd8 {[%emt 0:15:48]} 21. Be3 {[%emt 0:07:54]} Nxb3 {[%emt 0:09:14]} 22. Bxb3 {[%emt 0:00:21]} Qb5 {[%emt 0:00:05]} 23. Bg5 {[%emt 0:13:12]} Bxg5 {[%emt 0:03:02]} 24. Qxg5 {[%emt 0:00:07]} Rd4 {[%emt 0:02:47]} 25. Rad1 {[%emt 0:06:18]} Rad8 {[%emt 0:00:14]} 26. h3 {[%emt 0:04:21]} Qc6 {[%emt 0:03:16]} 27. Rxd4 {[%emt 0:01:29]} Rxd4 {[%emt 0:00:05]} 28. Rd1 {[%emt 0:00:51]} h6 {[%emt 0:04:32]} 29. Qg3 {[%emt 0:00:45]} Rxd1+ {[%emt 0:01:02]} 30. Bxd1 {[%emt 0:00:04]} Qc1 {[%emt 0:00:03]} 31. Qd3 {[%emt 0:07:01]} Bd5 {[%emt 0:00:09]} 32. b3 {[%emt 0:04:00]} Qg5 {[%emt 0:01:10]} 33. Bf3 {[%emt 0:01:29]} Qxe5 {[%emt 0:03:21]} 34. Bxd5 exd5 {[%emt 0:00:17]} 35. Qd2 {[%emt 0:00:56]} d4 {[%emt 0:06:14]} 36. Kf1 {[%emt 0:01:21]} Qb5+ {[%emt 0:01:32]} 37. Ke1 {[%emt 0:00:17]} d3 {[%emt 0:01:08]} 38. Qe3 {[%emt 0:01:10]} Qa6 {[%emt 0:07:09]} 39. Qe8+ {[%emt 0:01:33]} Kg7 {[%emt 0:00:07]} 40. Qe5+ {[%emt 0:00:37]} Kh7 {[%emt 0:01:28]} 41. Qd5 {[%emt 0:04:24]} Kg7 {[%emt 0:03:09]} 42. Qd4+ {[%emt 0:00:26]} Kg8 {[%emt 0:00:17]} 43. Qd8+ {[%emt 0:00:06]} Kh7 {[%emt 0:00:38]} 44. Qd7 {[%emt 0:01:01]} Kg7 {[%emt 0:01:27]} 45. Qd4+ {[%emt 0:00:06]} Kg8 {[%emt 0:02:50]} 46. Qd8+ {[%emt 0:00:06]} Kh7 {[%emt 0:00:24]} 47. Qd7 {[%emt 0:00:06]} Kg7 1/2-1/2

[Event "19th Prague Open-A 2020"]
[Site "Prague"]
[Date "2020.01.11"]
[Round "3.12"]
[White "Laxman, R.R."]
[Black "Pniaczek, Marek"]
[Result "1/2-1/2"]
[ECO "E06"]
[WhiteElo "2441"]
[BlackElo "2145"]
[Annotator "ChessBase"]
[PlyCount "99"]
[EventDate "2020.01.10"]
[EventType "swiss"]
[EventCountry "CZE"]
[SourceTitle "playchess.com"]
[Source "ChessBase"]
[SourceQuality "1"]
[TimeControl "40/5400+30:1800+30"]

1. d4 {[%emt 0:01:33]} d5 {[%emt 0:00:00]} 2. Nf3 {[%emt 0:00:09]} Nf6 {[%emt 0:00:00]} 3. c4 {[%emt 0:00:06]} e6 {[%emt 0:00:00]} 4. g3 {[%emt 0:00:03]} Be7 {[%emt 0:00:04]} 5. Bg2 {[%emt 0:00:05]} O-O {[%emt 0:00:09]} 6. O-O {[%emt 0:00:05]} dxc4 {[%emt 0:00:06]} 7. Qc2 {[%emt 0:00:05]} a6 {[%emt 0:00:05]} 8. a4 {[%emt 0:00:03]} Bd7 {[%emt 0:00:20]} 9. Qxc4 {[%emt 0:00:18]} Bc6 {[%emt 0:00:23]} 10. Bf4 {[%emt 0:00:32]} Nbd7 {[%emt 0:00:45]} 11. Nc3 {[%emt 0:00:57]} Bd6 {[%emt 0:00:25]} 12. a5 {[%emt 0:05:01]} Bxf4 {[%emt 0:05:07]} 13. gxf4 {[%emt 0:00:03]} Nd5 {[%emt 0:07:28]} 14. e3 {[%emt 0:06:33]} Nxc3 {[%emt 0:00:42]} 15. Qxc3 {[%emt 0:00:02]} Nf6 {[%emt 0:00:37]} 16. Ne5 {[%emt 0:02:09]} Bxg2 {[%emt 0:01:54]} 17. Kxg2 {[%emt 0:00:03]} Rc8 {[%emt 0:03:15]} 18. Qb3 {[%emt 0:03:07]} Qd5+ {[%emt 0:03:47]} 19. Qxd5 {[%emt 0:00:02]} exd5 {[%emt 0:01:01]} 20. Rfc1 {[%emt 0:01:20]} Ne4 {[%emt 0:01:59]} 21. b4 {[%emt 0:00:58]} f6 {[%emt 0:03:55]} 22. Nd7 {[%emt 0:02:02]} Rf7 {[%emt 0:03:19]} 23. Nc5 {[%emt 0:00:04]} Nd6 {[%emt 0:01:32]} 24. Kf3 {[%emt 0:00:08]} c6 {[%emt 0:02:45]} 25. Kg4 {[%emt 0:02:05]} g6 {[%emt 0:05:26]} 26. Kf3 {[%emt 0:00:05]} Nf5 {[%emt 0:04:25]} 27. Ke2 {[%emt 0:00:34]} Re7 {[%emt 0:01:44]} 28. Kd3 {[%emt 0:02:30]} Nd6 {[%emt 0:05:26]} 29. Rg1 {[%emt 0:02:30]} Kf7 {[%emt 0:02:27]} 30. Rae1 {[%emt 0:00:05]} Ne4 {[%emt 0:26:19]} 31. f3 {[%emt 0:03:19]} Nxc5+ {[%emt 0:00:43]} 32. bxc5 {[%emt 0:00:03]} f5 {[%emt 0:00:50]} 33. e4 {[%emt 0:01:28]} fxe4+ {[%emt 0:09:21]} 34. fxe4 {[%emt 0:00:01]} Rxe4 {[%emt 0:00:10]} 35. Rxe4 {[%emt 0:00:02]} dxe4+ {[%emt 0:00:08]} 36. Kxe4 {[%emt 0:00:01]} Re8+ {[%emt 0:00:13]} 37. Kf3 {[%emt 0:00:19]} Kf6 {[%emt 0:00:47]} 38. Rb1 {[%emt 0:00:15]} Re7 {[%emt 0:00:19]} 39. d5 {[%emt 0:00:59]} cxd5 {[%emt 0:00:33]} 40. Rb6+ {[%emt 0:00:01]} Kf5 {[%emt 0:01:07]} 41. Rd6 {[%emt 0:30:01]} Re1 {[%emt 0:34:25]} 42. Rxd5+ {[%emt 0:00:12]} Ke6 {[%emt 0:01:10]} 43. Rd6+ {[%emt 0:00:05]} Kf5 {[%emt 0:00:10]} 44. Rd7 {[%emt 0:02:45]} Rb1 {[%emt 0:00:30]} 45. Rf7+ {[%emt 0:00:23]} Ke6 {[%emt 0:00:23]} 46. Rxh7 {[%emt 0:00:06]} Rb5 {[%emt 0:00:29]} 47. Rc7 {[%emt 0:01:51]} Rxa5 {[%emt 0:00:14]} 48. Kg4 {[%emt 0:00:13]} Kf6 {[%emt 0:01:23]} 49. Rxb7 {[%emt 0:01:40]} Rxc5 {[%emt 0:00:53]} 50. Rb6+ {[%emt 0:00:01] Ke5} 1/2-1/2

[Event "19th Prague Open-A 2020"]
[Site "Prague"]
[Date "2020.01.11"]
[Round "3.13"]
[White "Quesada Vera, Liordis"]
[Black "Eriksson, Christian Altenburg"]
[Result "1-0"]
[ECO "B22"]
[WhiteElo "2386"]
[BlackElo "2121"]
[Annotator "ChessBase"]
[PlyCount "57"]
[EventDate "2020.01.10"]
[EventType "swiss"]
[EventCountry "CZE"]
[SourceTitle "playchess.com"]
[Source "ChessBase"]
[SourceQuality "1"]
[TimeControl "40/5400+30:1800+30"]

1. e4 {[%emt 0:15:27]} c5 {[%emt 0:00:00]} 2. c3 {[%emt 0:00:12]} d5 {[%emt 0:00:42]} 3. exd5 {[%emt 0:02:21]} Qxd5 {[%emt 0:00:11]} 4. d4 {[%emt 0:00:14]} g6 {[%emt 0:00:22]} 5. Na3 {[%emt 0:14:48]} Bg7 {[%emt 0:05:50]} 6. Nb5 {[%emt 0:07:01]} Na6 {[%emt 0:01:59]} 7. Be3 {[%emt 0:00:19]} cxd4 {[%emt 0:04:21]} 8. Qa4 {[%emt 0:04:38]} Qd7 {[%emt 0:09:27]} 9. O-O-O {[%emt 0:10:02]} Kf8 {[%emt 0:09:35]} 10. Nf3 {[%emt 0:14:37]} Nh6 {[%emt 0:07:54]} 11. Nfxd4 {[%emt 0:02:39]} Qe8 {[%emt 0:02:57]} 12. f3 {[%emt 0:04:26]} Nf5 {[%emt 0:03:34]} 13. Nxf5 {[%emt 0:00:22]} Bxf5 {[%emt 0:00:55]} 14. Qa5 {[%emt 0:02:53]} h5 {[%emt 0:06:33]} 15. h4 {[%emt 0:00:03]} Bf6 {[%emt 0:01:46]} 16. Nd4 {[%emt 0:00:21]} Bd7 {[%emt 0:01:47]} 17. Bg5 {[%emt 0:00:30]} Bxg5+ {[%emt 0:06:13]} 18. hxg5 {[%emt 0:00:40]} Kg7 {[%emt 0:01:50]} 19. Bxa6 {[%emt 0:00:29]} bxa6 {[%emt 0:01:02]} 20. Rhe1 {[%emt 0:00:11]} Bb5 {[%emt 0:03:07]} 21. Qc7 {[%emt 0:02:02]} e6 {[%emt 0:01:47]} 22. Rxe6 {[%emt 0:04:08]} Qc8 {[%emt 0:02:28]} 23. Re7 {[%emt 0:03:15]} Qxc7 {[%emt 0:01:29]} 24. Ne6+ {[%emt 0:00:07]} Kg8 {[%emt 0:02:47]} 25. Nxc7 {[%emt 0:00:03]} Rc8 {[%emt 0:00:27]} 26. Nxb5 {[%emt 0:01:45]} axb5 {[%emt 0:00:06]} 27. Rdd7 {[%emt 0:00:14]} Rh7 {[%emt 0:00:42]} 28. Rxa7 {[%emt 0:00:14]} Rc5 {[%emt 0:00:24]} 29. f4 {[%emt 0:00:14]} 1-0

[Event "19th Prague Open-A 2020"]
[Site "Prague"]
[Date "2020.01.11"]
[Round "3.14"]
[White "Neuman, Petr"]
[Black "Balinski, Damian"]
[Result "1/2-1/2"]
[ECO "B07"]
[WhiteElo "2371"]
[BlackElo "2139"]
[Annotator "ChessBase"]
[PlyCount "96"]
[EventDate "2020.01.10"]
[EventType "swiss"]
[EventCountry "CZE"]
[SourceTitle "playchess.com"]
[Source "ChessBase"]
[SourceQuality "1"]
[TimeControl "40/5400+30:1800+30"]

1. e4 {[%emt 0:03:53]} d6 {[%emt 0:00:00]} 2. d4 {[%emt 0:00:05]} Nf6 {[%emt 0:00:00]} 3. Nc3 {[%emt 0:00:13]} g6 {[%emt 0:00:00]} 4. h3 {[%emt 0:00:12]} Bg7 {[%emt 0:00:37]} 5. g4 {[%emt 0:00:09]} h5 {[%emt 0:18:17]} 6. g5 {[%emt 0:00:24]} Nfd7 {[%emt 0:00:03]} 7. f4 {[%emt 0:01:29]} Nb6 {[%emt 0:06:38]} 8. Bg2 {[%emt 0:06:06]} c6 {[%emt 0:04:09]} 9. Nge2 {[%emt 0:16:23]} d5 {[%emt 0:11:32]} 10. f5 {[%emt 0:00:26]} gxf5 {[%emt 0:07:16]} 11. e5 {[%emt 0:00:20]} e6 {[%emt 0:06:11]} 12. Ng3 {[%emt 0:02:44]} h4 {[%emt 0:07:04]} 13. Nh5 {[%emt 0:00:18]} Kf8 {[%emt 0:00:26]} 14. Nxg7 {[%emt 0:03:17]} Kxg7 {[%emt 0:00:02]} 15. Ne2 {[%emt 0:00:07]} N8d7 {[%emt 0:08:56]} 16. Nf4 {[%emt 0:01:18]} Nf8 {[%emt 0:01:38]} 17. Nh5+ {[%emt 0:00:29]} Kg6 {[%emt 0:06:19]} 18. Bf3 {[%emt 0:02:13]} Bd7 {[%emt 0:01:50]} 19. b3 {[%emt 0:03:41]} Be8 {[%emt 0:00:58]} 20. Be3 {[%emt 0:01:11]} c5 {[%emt 0:04:03]} 21. c3 {[%emt 0:00:41]} cxd4 {[%emt 0:01:49]} 22. cxd4 {[%emt 0:00:06]} Rc8 {[%emt 0:00:50]} 23. O-O {[%emt 0:02:49]} Nbd7 {[%emt 0:02:52]} 24. Kh1 {[%emt 0:02:33]} Nb8 {[%emt 0:00:05]} 25. Rg1 {[%emt 0:03:45]} Nc6 {[%emt 0:00:26]} 26. Rc1 {[%emt 0:03:06]} Nb4 {[%emt 0:01:23]} 27. Rxc8 {[%emt 0:02:00]} Qxc8 {[%emt 0:00:01]} 28. Qd2 {[%emt 0:01:14]} Nc6 {[%emt 0:00:02]} 29. Bf2 {[%emt 0:04:01]} Qd8 {[%emt 0:00:41]} 30. Bxh4 {[%emt 0:02:56]} Qa5 {[%emt 0:00:23]} 31. Qe3 {[%emt 0:02:08]} Qxa2 {[%emt 0:01:07]} 32. Bf2 {[%emt 0:01:07]} Nb4 {[%emt 0:02:57]} 33. h4 {[%emt 0:02:04]} Bb5 {[%emt 0:03:46]} 34. Nf6 {[%emt 0:02:27]} Kg7 {[%emt 0:00:17]} 35. h5 {[%emt 0:00:05]} Ng6 {[%emt 0:00:14]} 36. Rc1 {[%emt 0:27:02]} Nd3 {[%emt 0:00:53]} 37. h6+ {[%emt 0:00:48]} Kf8 {[%emt 0:00:01]} 38. Be1 {[%emt 0:01:03]} Qa3 {[%emt 0:03:25]} 39. Rc8+ {[%emt 0:03:18]} Ke7 {[%emt 0:00:02]} 40. Rc7+ {[%emt 0:00:02]} Kd8 {[%emt 0:01:35]} 41. Rxb7 {[%emt 0:30:22]} Qa1 {[%emt 0:10:49]} 42. Rxb5 {[%emt 0:00:00]} Nxe1 {[%emt 0:02:42]} 43. Qg1 {[%emt 0:00:00]} Qc3 {[%emt 0:01:06]} 44. Bg2 {[%emt 0:00:00]} Nxg2 {[%emt 0:06:25]} 45. Qxg2 {[%emt 0:00:00]} Qe1+ {[%emt 0:00:38]} 46. Qg1 {[%emt 0:00:00]} Qh4+ {[%emt 0:00:22]} 47. Qh2 {[%emt 0:00:00]} Qe1+ {[%emt 0:00:17]} 48. Qg1 {[%emt 0:00:00]} Qh4+ {[%emt 0:00:14]} 1/2-1/2

[Event "19th Prague Open-A 2020"]
[Site "Prague"]
[Date "2020.01.11"]
[Round "3.15"]
[White "Malovanyi, Yulian"]
[Black "Saglam, Buelent"]
[Result "1-0"]
[ECO "C01"]
[WhiteElo "2360"]
[BlackElo "2118"]
[Annotator "ChessBase"]
[PlyCount "75"]
[EventDate "2020.01.10"]
[EventType "swiss"]
[EventCountry "CZE"]
[SourceTitle "playchess.com"]
[Source "ChessBase"]
[SourceQuality "1"]
[TimeControl "40/5400+30:1800+30"]

1. e4 e6 2. d4 d5 3. exd5 exd5 4. Nf3 Nf6 5. Bd3 Bd6 6. O-O O-O 7. Bg5 Be6 8. Nbd2 Nbd7 9. c4 c6 10. c5 Bc7 11. Qc2 Qb8 12. Rfe1 h6 13. Bh4 Nh5 14. Bg3 Nf4 15. Bxf4 Bxf4 16. b4 a6 17. a4 Qd8 18. Rab1 Qf6 19. b5 axb5 20. axb5 Bxd2 21. Qxd2 Bf5 22. bxc6 bxc6 23. Rb7 Rfb8 24. Rc7 Rc8 25. Rxc8+ Rxc8 26. Qc2 Bg4 27. Ne5 Re8 28. Qa4 g5 29. Re3 Nxe5 30. dxe5 Qe6 31. h4 Bh5 32. f4 Qe7 33. Qxc6 gxf4 34. Qxh6 f5 35. Qxf4 Qxc5 36. Kh2 Bg4 37. Bxf5 Bxf5 38. Rg3+ 1-0

[Event "19th Prague Open-A 2020"]
[Site "Prague"]
[Date "2020.01.11"]
[Round "3.16"]
[White "Priehoda, Vitezslav"]
[Black "Laverton, Christian"]
[Result "1/2-1/2"]
[ECO "A06"]
[WhiteElo "2341"]
[BlackElo "2109"]
[Annotator "ChessBase"]
[PlyCount "33"]
[EventDate "2020.01.10"]
[EventType "swiss"]
[EventCountry "CZE"]
[SourceTitle "playchess.com"]
[Source "ChessBase"]
[SourceQuality "1"]
[TimeControl "40/5400+30:1800+30"]

1. Nf3 d5 2. c4 c6 3. e3 Nf6 4. Nc3 a6 5. h3 b5 6. b3 g6 7. Bb2 Bg7 8. d4 O-O 9. Bd3 Nbd7 10. O-O bxc4 11. bxc4 Rb8 12. Rb1 Qa5 13. Qe2 dxc4 14. Bxc4 c5 15. Rfd1 Bb7 16. Ne5 e6 17. f4 1/2-1/2

[Event "19th Prague Open-A 2020"]
[Site "Prague"]
[Date "2020.01.12"]
[Round "4.4"]
[White "Budnikov, Oleg"]
[Black "Pushkov, Nikolai"]
[Result "1/2-1/2"]
[ECO "C10"]
[WhiteElo "2432"]
[BlackElo "2239"]
[Annotator "ChessBase"]
[PlyCount "86"]
[EventDate "2020.01.10"]
[EventType "swiss"]
[EventCountry "CZE"]
[SourceTitle "playchess.com"]
[Source "ChessBase"]
[SourceQuality "1"]
[TimeControl "40/5400+30:1800+30"]

1. e4 {[%emt 0:10:15]} e6 {[%emt 0:00:00]} 2. d4 {[%emt 0:00:15]} d5 {[%emt 0:00:00]} 3. Nc3 {[%emt 0:00:04]} dxe4 {[%emt 0:00:47]} 4. Nxe4 {[%emt 0:00:07]} Nd7 {[%emt 0:00:10]} 5. Bd3 {[%emt 0:00:17]} Ngf6 {[%emt 0:00:11]} 6. Qe2 {[%emt 0:00:08]} c5 {[%emt 0:00:52]} 7. Nxf6+ {[%emt 0:00:13]} Nxf6 {[%emt 0:00:14]} 8. dxc5 {[%emt 0:00:23]} Bxc5 {[%emt 0:01:25]} 9. Nf3 {[%emt 0:00:10]} Qc7 {[%emt 0:03:57]} 10. Bd2 {[%emt 0:01:18]} O-O {[%emt 0:04:49]} 11. O-O-O {[%emt 0:00:11]} b6 {[%emt 0:00:13]} 12. Bc3 {[%emt 0:01:58]} Bb7 {[%emt 0:00:23]} 13. Be5 {[%emt 0:03:02]} Qe7 {[%emt 0:01:09]} 14. h4 {[%emt 0:00:29]} Rfd8 {[%emt 0:02:02]} 15. Rh3 {[%emt 0:01:12]} Bd6 {[%emt 0:02:31]} 16. Rg3 {[%emt 0:07:31]} Bxf3 {[%emt 0:03:45]} 17. gxf3 {[%emt 0:00:48]} Bxe5 {[%emt 0:00:09]} 18. Qxe5 {[%emt 0:00:05]} Rd5 {[%emt 0:00:47]} 19. Bxh7+ {[%emt 0:00:20]} Kf8 {[%emt 0:02:45]} 20. Rxd5 {[%emt 0:02:16]} exd5 {[%emt 0:00:04]} 21. Qxe7+ {[%emt 0:00:13]} Kxe7 {[%emt 0:00:07]} 22. Bd3 {[%emt 0:00:39]} g6 {[%emt 0:02:05]} 23. f4 {[%emt 0:00:33]} Rh8 {[%emt 0:00:15]} 24. f5 {[%emt 0:05:15]} gxf5 {[%emt 0:00:25]} 25. Bxf5 {[%emt 0:01:40]} Rxh4 {[%emt 0:00:10]} 26. Ra3 {[%emt 0:00:14]} a5 {[%emt 0:00:12]} 27. Rb3 {[%emt 0:00:04]} Rf4 {[%emt 0:00:42]} 28. Bd3 {[%emt 0:00:10]} Nd7 {[%emt 0:01:15]} 29. Bb5 {[%emt 0:00:21]} Nc5 {[%emt 0:00:30]} 30. Re3+ {[%emt 0:00:07]} Kd6 {[%emt 0:00:05]} 31. f3 {[%emt 0:00:30]} d4 {[%emt 0:01:26]} 32. Re8 {[%emt 0:00:10]} Rxf3 {[%emt 0:00:22]} 33. Rd8+ {[%emt 0:00:06]} Ke5 {[%emt 0:00:38]} 34. Bc4 {[%emt 0:00:11]} f5 {[%emt 0:03:44]} 35. Rd5+ {[%emt 0:00:22]} Ke4 {[%emt 0:00:04]} 36. Rd6 {[%emt 0:00:10]} Rg3 {[%emt 0:01:51]} 37. b3 {[%emt 0:00:19]} d3 {[%emt 0:01:29]} 38. cxd3+ {[%emt 0:01:42]} Nxd3+ {[%emt 0:00:02]} 39. Kd2 {[%emt 0:01:03]} Rg2+ {[%emt 0:03:23]} 40. Kc3 {[%emt 0:00:28]} Nb4 {[%emt 0:00:28]} 41. Re6+ {[%emt 0:30:19]} Kf4 {[%emt 0:30:07]} 42. a3 {[%emt 0:00:41]} Rc2+ {[%emt 0:09:21]} 43. Kd4 {[%emt 0:03:20]} Rd2+ {[%emt 0:00:10] Ke4+ Ke5+} 1/2-1/2

[Event "19th Prague Open-A 2020"]
[Site "Prague"]
[Date "2020.01.12"]
[Round "4.6"]
[White "Lalic, Bogdan"]
[Black "Vignesh B"]
[Result "1/2-1/2"]
[ECO "E11"]
[WhiteElo "2402"]
[BlackElo "1912"]
[Annotator "ChessBase"]
[PlyCount "39"]
[EventDate "2020.01.10"]
[EventType "swiss"]
[EventCountry "CZE"]
[SourceTitle "playchess.com"]
[Source "ChessBase"]
[SourceQuality "1"]
[TimeControl "40/5400+30:1800+30"]

1. d4 {[%emt 0:01:33]} Nf6 {[%emt 0:00:00]} 2. c4 {[%emt 0:00:20]} e6 {[%emt 0:00:00]} 3. Nf3 {[%emt 0:00:07]} Bb4+ 4. Nbd2 O-O {[%emt 0:00:05]} 5. a3 {[%emt 0:00:15]} Be7 {[%emt 0:00:06]} 6. e4 {[%emt 0:00:10]} d5 {[%emt 0:00:06]} 7. e5 {[%emt 0:00:11]} Nfd7 {[%emt 0:00:06]} 8. Bd3 {[%emt 0:00:10]} c5 {[%emt 0:00:52]} 9. O-O {[%emt 0:00:08]} Nc6 {[%emt 0:01:06]} 10. Re1 {[%emt 0:00:11]} dxc4 {[%emt 0:02:59]} 11. Nxc4 {[%emt 0:00:49]} cxd4 {[%emt 0:04:05]} 12. b4 {[%emt 0:02:12]} b5 {[%emt 0:20:39]} 13. Be4 {[%emt 0:02:43]} Bb7 {[%emt 0:03:02]} 14. Nxd4 {[%emt 0:02:07]} Nxd4 {[%emt 0:02:14]} 15. Bxb7 {[%emt 0:00:07]} Rb8 {[%emt 0:05:18]} 16. Na5 {[%emt 0:17:23]} Nc5 {[%emt 0:11:06]} 17. Bf3 {[%emt 0:02:27]} Rc8 {[%emt 0:07:26]} 18. Be3 {[%emt 0:08:50]} Nd3 {[%emt 0:00:10]} 19. Bxd4 {[%emt 0:11:31]} Nxe1 {[%emt 0:00:53]} 20. Be4 {[%emt 0:00:08]} 1/2-1/2

[Event "19th Prague Open-A 2020"]
[Site "Prague"]
[Date "2020.01.12"]
[Round "4.7"]
[White "Svanda, Ondrej"]
[Black "Quesada Vera, Liordis"]
[Result "0-1"]
[ECO "B07"]
[WhiteElo "2257"]
[BlackElo "2386"]
[Annotator "ChessBase"]
[PlyCount "58"]
[EventDate "2020.01.10"]
[EventType "swiss"]
[EventCountry "CZE"]
[SourceTitle "playchess.com"]
[Source "ChessBase"]
[SourceQuality "1"]
[TimeControl "40/5400+30:1800+30"]

1. e4 {[%emt 0:00:00]} d6 {[%emt 0:00:00]} 2. d4 {[%emt 0:00:00]} Nf6 {[%emt 0:00:00]} 3. Nc3 {[%emt 0:00:00]} Nbd7 {[%emt 0:00:00]} 4. Nf3 {[%emt 0:00:49]} e5 {[%emt 0:00:01]} 5. Bc4 {[%emt 0:00:37]} Be7 {[%emt 0:00:09]} 6. O-O {[%emt 0:00:18]} O-O {[%emt 0:00:05]} 7. a4 {[%emt 0:00:07]} c6 {[%emt 0:00:09]} 8. Re1 {[%emt 0:03:11]} Qc7 {[%emt 0:01:08]} 9. h3 {[%emt 0:05:50]} h6 {[%emt 0:04:57]} 10. Be3 {[%emt 0:02:42]} Rd8 {[%emt 0:04:27]} 11. Qb1 {[%emt 0:03:08]} exd4 {[%emt 0:09:28]} 12. Bxd4 {[%emt 0:08:05]} Ne5 {[%emt 0:00:25]} 13. Nxe5 {[%emt 0:01:58]} dxe5 {[%emt 0:00:14]} 14. Be3 {[%emt 0:00:03]} Bb4 {[%emt 0:00:35]} 15. f3 {[%emt 0:01:02]} Qe7 {[%emt 0:19:17]} 16. Qa2 {[%emt 0:04:45]} Rf8 {[%emt 0:13:05]} 17. Qb3 {[%emt 0:03:24]} Nh5 {[%emt 0:01:14]} 18. Red1 {[%emt 0:04:19]} Nf4 {[%emt 0:16:34]} 19. Ne2 {[%emt 0:05:44]} b5 {[%emt 0:18:58]} 20. axb5 {[%emt 0:01:22]} cxb5 {[%emt 0:00:02]} 21. Bxb5 {[%emt 0:01:23]} Rb8 {[%emt 0:00:50]} 22. Bxf4 {[%emt 0:23:59]} exf4 {[%emt 0:01:33]} 23. Qd3 {[%emt 0:00:05]} Qg5 {[%emt 0:01:53]} 24. Nd4 {[%emt 0:07:38]} Bc5 {[%emt 0:01:01]} 25. Bc4 {[%emt 0:02:24]} Bxh3 {[%emt 0:01:31]} 26. Rd2 {[%emt 0:00:13]} Rxb2 {[%emt 0:00:52]} 27. c3 {[%emt 0:04:47]} Rfb8 {[%emt 0:01:10]} 28. Qe2 {[%emt 0:01:51]} Bxg2 {[%emt 0:00:42]} 29. Rxb2 {[%emt 0:00:38]} Bxf3+ {[%emt 0:00:07]} 0-1